Cogmind - Beta 13 @@@ ROGUE MODE // 2024.04.26 @ 17:09:17 Player: Skysub Result: Destroyed by Y-45 Defender with Beam Rifle Performance ------------- Evolutions (0) 0 Regions Visited (2) 400 Robots Destroyed (17) 85 Value Destroyed (557) 557 Prototype IDs (0) 0 Alien Tech Used (0) 0 Bonus (0) 0 TOTAL SCORE: 1042 Bonus ------- None Cogmind --------- Core Integrity 0/250 Matter 267/300 Energy 38/265 System Corruption 0% Temperature Warm (156) Movement Core (250) Ox4 Location -10/Mines Parts ------- > --- POWER (1) -------- Improved Ion Engine > --- PROPULSION (2) --- (None) > --- UTILITY (2) ------ Small Storage Unit > --- WEAPON (2) ------- Heavy Assault Rifle > --- INVENTORY (8) ---- Aluminum Leg Hover Unit Tractor Beam Peak State ------------ > --- POWER ------------ Light Nuclear Core > --- PROPULSION ------- Aluminum Leg Aluminum Leg > --- UTILITY ---------- Small Storage Unit Light Armor Plating > --- WEAPON ----------- Small Laser Small Laser > --- INVENTORY -------- Ion Engine Aluminum Leg Hover Unit Signal Interpreter Light Armor Plating Tractor Beam Small Laser [Rating: 9] Favorites ----------- Power Light Nuclear Core Engine Ion Engine Power Core Light Nuclear Core Propulsion Aluminum Leg Leg Aluminum Leg Utility Small Storage Unit Storage Small Storage Unit Processor Signal Interpreter Protection Light Armor Plating Weapon Small Laser Energy Gun Small Laser Ballistic Gun Light Assault Rifle Ballistic Cannon Light Cannon Special Weapon Mining Laser Build | -11 -10 -10 ------- Run | Yrd Mat Min Slots Evolved . | . . . Power . | . . . Propulsion . | . . . Utility . | . . . Weapon . | . . . Parts Attached 26 | 6 10 10 Power 4 | 1 1 2 Engine 3 | 1 . 2 Core 1 | . 1 . Reactor . | . . . Propulsion 4 | 2 2 . Treads . | . . . Leg 4 | 2 2 . Wheel . | . . . Hover . | . . . Flight . | . . . Utility 5 | 1 3 1 Device . | . . . Storage 1 | 1 . . Processor 1 | . 1 . Hackware . | . . . Protection 3 | . 2 1 Artifact . | . . . Weapon 13 | 2 4 7 Energy Gun 9 | 1 4 4 Energy Cannon . | . . . Ballistic Gun 2 | 1 . 1 Ballistic Cannon 1 | . . 1 Launcher . | . . . Special Weapon 1 | . . 1 Impact Weapon . | . . . Slashing Weapon . | . . . Piercing Weapon . | . . . Special Melee Weapon . | . . . Unidentified Prototypes . | . . . Parts Lost 15 | . 4 11 Power 2 | . . 2 Propulsion 3 | . 1 2 Utility 2 | . 1 1 Weapon 8 | . 2 6 Highest Loss Streak 11 | . 4 11 To Critical Strikes . | . . . Average Slot Usage (%) 94 | . 95 92 Engine 5 | . 10 . Core 7 | . 3 11 Leg 25 | . 26 24 Storage 14 | . 14 14 Processor 6 | . 1 12 Protection 5 | . 10 . Energy Gun 21 | . 19 23 Ballistic Gun 5 | . 8 . Ballistic Cannon 1 | . . 2 Naked Turns . | . . . Heaviest Build 16 | 13 16 14 Greatest Support 20 | 20 20 20 Greatest Overweight (x) 2 | . 1 2 Average Overweight (x) . | . . . Largest Inventory Capacity 8 | 8 8 8 Average Capacity 7 | 6 8 8 Most Carried 8 | . 8 8 Average Carried 5 | . 4 7 Final Capacity 8 | 8 8 8 Final Carried 8 | . 8 3 Class Distribution -------------------- 58% | Scavenger-Mutant 41% | Mutant Dominant Class ---------------- Mutant | -10/Materials Scavenger-Mutant | -10/Mines Resources | -11 -10 -10 ----------- Run | Yrd Mat Min Matter Collected 428 | 203 178 47 Remotely . | . . . Salvage Created 715 | . 547 168 Parts 49 | . 36 13 Haulers Intercepted 1 | . 1 . Recyclers Shooed 1 | . 1 . Parts Field Recycled . | . . . Retrieved Matter . | . . . Parts Self-Destructed . | . . . Prevented . | . . . Kills | -11 -10 -10 ------- Run | Yrd Mat Min Combat Hostiles Destroyed 14 | . 10 4 Guns 13 | . 10 3 Cannons 1 | . . 1 Classes Destroyed 5 | . 4 1 Hauler 1 | . 1 . Mechanic 1 | . 1 . Watcher 1 | . 1 . Grunt 13 | . 10 3 Sentry 1 | . . 1 Best Kill Streak 5 | . 5 3 Combat Bots Only 4 | . 4 3 Max Kills in Single Turn 1 | . 1 1 Gunslinging . | . . . Exploded . | . . . Melee . | . . . Uniques/NPCs Destroyed . | . . . Combat | -11 -10 -10 -------- Run | Yrd Mat Min Hostile Shots Fired 140 | . 57 83 Missed 26 | . 10 16 Damage Taken 1578 | . 598 980 Core 262 | . 32 230 Absorbed by Shields . | . . . Core Remaining (%) 100 | 100 . . Volleys Fired 63 | . 45 18 Largest 2 | . 2 2 Hottest 140 | . 80 140 Shots Fired 122 | . 89 33 Gun 113 | . 89 24 Cannon 8 | . . 8 Launcher . | . . . Special 1 | . . 1 Kinetic 43 | . 34 9 Thermal 79 | . 55 24 Explosive . | . . . Electromagnetic . | . . . Robot Hit Streak 16 | . 16 10 Robot Miss Streak 3 | . 3 2 Penetration Max . | . . . Secondary Targets 4 | . 3 1 Max Gunslinging Chain 1 | . 1 1 Shots Hit Robots 82 | . 55 27 Core Hits 37 | . 28 9 Critical Kills . | . . . Critical Parts Destroyed . | . . . Critical Strikes 4 | . 4 . Burn 4 | . 4 . Melee Attacks . | . . . Impact . | . . . Slashing . | . . . Piercing . | . . . Sneak Attacks . | . . . Combat Hostiles . | . . . Follow-up Attacks . | . . . Damage Inflicted 960 | . 585 375 Guns 848 | . 585 263 Cannons 112 | . . 112 Explosions . | . . . Melee . | . . . Ramming . | . . . Kinetic 304 | . 174 130 Thermal 656 | . 411 245 Explosive . | . . . Electromagnetic . | . . . Impact . | . . . Slashing . | . . . Piercing . | . . . Highest Corruption . | . . . Average Corruption . | . . . Corruption Purged . | . . . Corruption Blocked . | . . . Overload Shots . | . . . Overflow Damage . | . . . Projectiles . | . . . Explosions . | . . . Melee . | . . . Knockbacks 7 | . . 7 Impact . | . . . Kinetic 4 | . . 4 Secondary 3 | . . 3 Self-Inflicted Damage . | . . . Shots . | . . . Rammed . | . . . Targets Rammed . | . . . Kicked . | . . . Crushed . | . . . Highest Temperature 357 | . 357 252 Average Temperature 150 | . 147 157 Received Heat Transfer 813 | . 354 459 Effects 4 | . 3 1 Interference 3 | . 2 1 Short Circuit 1 | . 1 . Siege Activations . | . . . Robots Corrupted . | . . . Combat Hostiles . | . . . Parts Fried . | . . . Impact Corruptions . | . . . Robots Melted . | . . . Combat Hostiles . | . . . Parts Melted 2 | . 1 1 Heat Transferred 1947 | . 1399 548 Parts Sabotaged . | . . . Parts Stolen . | . . . Parts Stripped . | . . . Power Chain Reactions . | . . . Alert | -11 -10 -10 ------- Run | Yrd Mat Min Peak Influence 269 | . 269 102 Initial 26 | . . 26 Average 84 | . 132 42 Maximum Alert Level 1 | . 1 . Low Security (%) 79 | 100 58 100 Level 1 20 | . 41 . Level 2 . | . . . Level 3 . | . . . Level 4 . | . . . Level 5 . | . . . High Security . | . . . Max Security . | . . . Squads Dispatched 2 | . 2 . Investigation 1 | . 1 . Extermination . | . . . Reinforcement 1 | . 1 . Assault . | . . . Garrison . | . . . Intercept . | . . . Searches Triggered . | . . . Construction Impeded . | . . . Haulers Reinforced . | . . . Active Scanning Responses . | . . . Cargo Convoy Interrupts . | . . . Stealth | -11 -10 -10 --------- Run | Yrd Mat Min Distress Signals . | . . . Communications Jammed . | . . . Distress Signals . | . . . Times Spotted 24 | . 17 7 Peak Tracking Total 6 | . 6 6 Tactical Retreats 1 | . . 1 Traps | -11 -10 -10 ------- Run | Yrd Mat Min Traps Triggered 1 | . 1 . Indirectly . | . . . Trap Hack Attempts . | . . . Triggered . | . . . Disarmed . | . . . Reprogrammed . | . . . Reused . | . . . Traps Extracted . | . . . Installed . | . . . Triggered . | . . . Machines | -11 -10 -10 ---------- Run | Yrd Mat Min Machines Disabled . | . . . Max in Single Turn . | . . . Machines Repaired . | . . . Machines Dismantled . | . . . Machines Sabotaged . | . . . Overloaded Fab Kills . | . . . Hacking | -11 -10 -10 --------- Run | Yrd Mat Min Machines Accessed 3 | . 3 . Terminals 3 | . 3 . Fabricators . | . . . Repair Stations . | . . . Recycling Units . | . . . Scanalyzers . | . . . Garrison Access . | . . . Total Hacks 8 | . 8 . Successful 2 | . 2 . Failed 6 | . 6 . Catastrophic 4 | . 4 . Database Lockouts . | . . . Manual 5 | . 5 . Terminals 8 | . 8 . Fabricators . | . . . Repair Stations . | . . . Recycling Units . | . . . Scanalyzers . | . . . Garrison Access . | . . . Terminal Hacks 2 | . 2 . Hauler Manifests 1 | . 1 . Zone Layout 1 | . 1 . Fabricator Hacks . | . . . Repair Station Hacks . | . . . Recycling Unit Hacks . | . . . Scanalyzer . | . . . Garrison Access Hacks . | . . . Unauthorized Hacks . | . . . Terminals . | . . . Fabricators . | . . . Repair Stations . | . . . Recycling Units . | . . . Scanalyzers . | . . . Garrison Access . | . . . Data Cores Recovered . | . . . Used . | . . . Hacking Detections 3 | . 3 . Full Trace Events 1 | . 1 . Feedback Events . | . . . Feedback Blocked . | . . . Robot Schematics Acquired . | . . . Robots Built . | . . . Authchips . | . . . Time . | . . . Total Robot Build Rating . | . . . Part Schematics Acquired . | . . . Parts Built . | . . . Authchips . | . . . Time . | . . . Total Part Build Rating . | . . . Parts Repaired . | . . . Time . | . . . Parts Recycled . | . . . Recycled Matter . | . . . Retrieved Matter . | . . . Retrieved Components . | . . . Parts Scanalyzed . | . . . Part Schematics Acquired . | . . . Parts Damaged . | . . . Bothacking | -11 -10 -10 ------------ Run | Yrd Mat Min Used RIF Installer . | . . . Robots Hacked . | . . . Non-combat . | . . . Combat . | . . . Robot Hacks Applied . | . . . Relay Couplers Released . | . . . Fabnet Peak Effective % . | . . . Robots Rewired . | . . . Allies Hacked . | . . . Hacks Repelled . | . . . Allies | -11 -10 -10 -------- Run | Yrd Mat Min Total Allies . | . . . Largest Group . | . . . Highest-Rated Group . | . . . Highest-Rated Ally . | . . . Total Orders . | . . . Ally Attacks . | . . . Total Damage . | . . . Kills . | . . . Allies Corrupted . | . . . Allies Melted . | . . . Intel | -11 -10 -10 ------- Run | Yrd Mat Min Robot Analysis Total . | . . . Derelict Logs Recovered 1 | . . 1 Drone Launches . | . . . Drone Recoveries . | . . . Exploration | -11 -10 -10 ------------- Run | Yrd Mat Min Turns Passed 819 | 69 413 337 Spaces Moved 464 | 44 200 220 Core 6 | 5 . 1 Treads . | . . . Legs 458 | 39 200 219 Wheels . | . . . Hover . | . . . Flight . | . . . Fastest Speed 50 | 50 120 120 Average Speed 120 | 112 123 120 Slowest Speed 190 | 120 190 150 Overloaded Moves . | . . . Propulsion Burnouts . | . . . Robots Hopped . | . . . Cave-ins Triggered . | . . . Exploration Rate (%) 36 | 3 41 66 Regions Visited 2 Branch Regions 1 Pre-discovered Areas 1 | . . 1 Known Exits Taken 1 | . 1 . Unknown Exits Taken 1 | 1 . . Scrap Searched 1 | . . 1 Spaces Dug . | . . . Terrain Destroyed 1 | . . 1 Melee . | . . . Projectile 1 | . . 1 AOE . | . . . Terrain Rammed . | . . . Walls Destroyed . | . . . Machines Disabled . | . . . Actions | -11 -10 -10 --------- Run | Yrd Mat Min Total 596 | 60 281 255 Wait 32 | 11 16 5 Move 462 | 43 199 220 Hop . | . . . Pick Up 8 | . 8 . Fast Attach 15 | 6 5 4 Attach 5 | . 1 4 Detach 2 | . 1 1 Swap 6 | . 4 2 Drop 3 | . 2 1 Fire 63 | . 45 18 Melee . | . . . Ram . | . . . Kick . | . . . Crush . | . . . Escape Stasis . | . . . Rewire . | . . . Trap . | . . . Miscellaneous . | . . . Route ------- -11/Scrapyard -10/Materials (discovered 3 exits: [*Mat] / *Min x2) -10/Mines History --------- Turn | Location | Event 8 | -11/Scrapyard | Discovered new exit (range 14) 70 | -11/Scrapyard | Entered Materials 196 | -10/Materials | Discovered new exit (range 3) 283 | -10/Materials | Discovered new exit (range 15) 312 | -10/Materials | Build established: Mutant 383 | -10/Materials | Lost 4 parts (1n1u2w) 430 | -10/Materials | Discovered new exit (range 12) 460 | -10/Materials | Identified exit to Mines 483 | -10/Materials | Entered Mines 505 | -10/Mines | Learned location of Storage (-8) 613 | -10/Mines | Build established: Scavenger-Mutant 797 | -10/Mines | Core integrity fell below 50% 807 | -10/Mines | Core integrity fell below 20% 820 | -10/Mines | Destroyed by Y-45 Defender with Beam Rifle Last Messages --------------- G-34 Mercenary destroyed. Switching to secondary target: G-47 Trooper. Mining Laser destroyed. R-06 Scavenger collects Aluminum Leg. Acquired 45 matter. Acquired Particle Gun. Aluminum Leg destroyed. Discarded Signal Interpreter. Sml. Laser destroyed. Critical hit (Burn: +37). Lgt. Treads melted. Y-45 Defender destroyed. Ion Engine destroyed. Particle Gun destroyed. Lgt. Armor Plating destroyed. Sml. Laser destroyed. Acquired Hvy. Assault Rifle. Overheating: System interference. Hvy. Assault Rifle temporarily disabled. Acquired Imp. Ion Engine. Map ----- +----------------------------------------------------+ | ??????????????# #????# ##??# ##?????# | | ??????????????# ###### #??# #??????# | | ?????????###### #??## ##??????? | | ?????????# ##### ##???####???????? | | ?????????# #######???# ####???????????????? | | ?????????# #?????????## ##??????????????????? | | ?????????# ##?????????# ##???????####????????? | | ????????## ##????????###??????### #####????? | | ???????## #????????????????## #????? | | ??????## #????????????????# ! =## #????? | | ??????# ##???????????????# ## #????? | | ??????# ##?????????????## ### #????# | | ??????## #?????????????# ##?# ###### | | ???????## #?????????????# != ##??# ! % | | ????????## ##?????????????## #???# ! | | ?????????######????????####??## #???######## | | ???????????????????????# ### ##??????????# | | ????????????????????????# ##???????????? | | ????????????????????????## ####????????????? | | ?????????????????????????## ##???????????????? | | ??????????????????????????# #????????????????? | | ??????????????????????????# #????????????????? | | ??????????????????????????# #????????????????? | | ??????????????????????????# #????????????????? | | ??????????????????######??# #????????????????? | | ??????????# #### @ #?## #????????????????? | | ?????????# Yg=##"# #????????????????? | | ?????????# !%%% %%%#????????????????? | | ?????????## ######????????????????? | | ??????????# #?????????????????????? | | ??????????## ##?????????????????????? | | ???????????# #??????????????????????? | | ???????????# ??????????????????????? | | ???????????# ##??????????????????????? | | ???????????# ###????????????????????????? | | ???????????## #???????????????????????????? | | ????????????### #????????????????????????????? | | ??????????????# ?????????????????????????????? | | ??????????????#??????????????????????????????? | | ?????????????????????????????????????????????? | | ?????????????????????????????????????????????? | | ?????????????????????????????????????????????? | | ?????????????????????????????????????????????? | | ?????????????????????????????????????????????? | | ?????????????????????????????????????????????? | | ?????????????????????????????????????????????? | | ?????????????????????????????????????????????? | | ?????????????????????????????????????????????? | | | | | +----------------------------------------------------+ Best States ------------- Heat Dissipation 25 Energy Generation 14 Energy Capacity 265 Matter Stores 300 Matter Capacity 300 Sight Range 16 Terrain Scan Density 10 Armor Coverage 150 Evasion (%) 55 Item Schematics ----------------- None Robot Schematics ------------------ None Fabricated ------------ Nothing Alien Tech Used ----------------- None Achievements -------------- None Challenges ------------ None Game ------ Seed ThermoelectricTrapOptics Manual? 0 Play Time 00:09:07 Cumulative 46.8 hours Start 2024.04.26 @ 17:00:23 End 2024.04.26 @ 17:09:17 Sessions 1 Manual Loads 0 Difficulty Rogue Special Mode None Game No. 36 Rogue 36 Adventurer 0 Explorer 0 Win Type - Total 1 Types 1/0/0/0/0/0/0/0/0 Lore% 28 Gallery% 45 Achievement% 34 Wizard Run 0 Options --------- Layout 1 ASCII 0 Keyboard 1 Movement Numpad Keybinds 0 Fullscreen 1 Font 32/SmallcapsGlow Map View 77x35 Zoom Use 0% Tactical HUD 0 Map Filters NONE Filters NONE Steam 1 RUN: bae20813-ed9c-48f4-ab4b-551267b33ad8